fUST/lending_fUST_20250729
["ID","MTS","AMOUNT","RATE_DAILY","PERIOD"]
[375867669,1753765856363,-460.0,0.00021643,2]
[375867670,1753765856373,-460.0,0.00021643,2]
[375867672,1753765856383,-460.0,0.00021643,2]
[375867674,1753765856392,-460.0,0.00021643,2]
[375867676,1753765856402,-460.0,0.00021643,2]
[375867679,1753765856412,-460.0,0.00021643,2]
[375867681,1753765856423,-893.82,0.00021643,2]
[375867683,1753765856432,-460.0,0.00021643,2]
[375867685,1753765856444,-836.14,0.00021643,2]
[375867687,1753765856455,-460.0,0.00021643,2]
[375867689,1753765856465,-1107.56,0.00021643,2]
[375867691,1753765856475,-460.0,0.00021643,2]
[375867693,1753765856485,-460.0,0.00021643,2]
[375867695,1753765856495,-460.0,0.00021643,2]
[375867697,1753765856504,-460.0,0.00021643,2]
[375867699,1753765856514,-488.77,0.00021643,2]
[375867701,1753765856524,-168.0,0.0002171,2]
[375867703,1753765856534,-3000.0,0.000219,2]
[375867705,1753765856544,-3000.0,0.0002191,2]
[375867707,1753765856554,-460.0,0.00021917,2]
[375867709,1753765856565,-460.0,0.00021917,2]
[375867711,1753765856574,-460.0,0.00021917,2]
[375867713,1753765856584,-460.0,0.00021917,2]
[375867715,1753765856594,-460.0,0.00021917,2]
[375867717,1753765856604,-460.0,0.00021917,2]
[375867719,1753765856614,-460.0,0.00021917,2]
[375867721,1753765856624,-460.0,0.00021917,2]
[375867723,1753765856634,-460.0,0.00021917,2]
[375867725,1753765856644,-1728.1,0.00021917,2]
[375867728,1753765856654,-460.0,0.00021917,2]
[375867730,1753765856664,-460.0,0.00021917,2]
[375867732,1753765856673,-564.83,0.00021917,2]
[375867734,1753765856683,-596.650706,0.00021917,2]
[375867736,1753765856694,-1249.97,0.00021917,2]
[375867738,1753765856704,-460.0,0.00021917,2]
[375867740,1753765856714,-522.22,0.00021917,2]
[375867742,1753765856727,-460.0,0.00021917,2]
[375867744,1753765856738,-460.0,0.00021917,2]
[375867746,1753765856748,-460.0,0.00021917,2]
[375867749,1753765856759,-460.0,0.00021917,2]
[375867751,1753765856768,-460.0,0.00021917,2]
[375867753,1753765856778,-472.31,0.00021917,2]
[375867754,1753765856789,-460.0,0.00021917,2]
[375867756,1753765856800,-785.62,0.00021917,2]
[375867758,1753765856810,-1092.49,0.00021917,2]
[375867760,1753765856820,-1555.88,0.00021917,2]
[375867762,1753765856830,-460.0,0.00021917,2]
[375867764,1753765856840,-460.0,0.00021917,2]
[375867766,1753765856851,-535.47,0.00021917,2]
[375867768,1753765856863,-928.11,0.00021917,2]
[375867770,1753765856873,-460.0,0.00021917,2]
[375867773,1753765856883,-460.0,0.00021917,2]
[375867775,1753765856893,-1227.64,0.00021917,2]
[375867777,1753765856903,-2722.94,0.00021917,2]
[375867779,1753765856913,-460.0,0.00021917,2]
[375867781,1753765856923,-460.0,0.00021917,2]
[375867783,1753765856933,-460.0,0.00021917,2]
[375867785,1753765856943,-1069.34,0.00021917,2]
[375867787,1753765856953,-828.51,0.00021917,2]
[375867789,1753765856963,-460.0,0.00021917,2]
[375867791,1753765856975,-460.0,0.00021917,2]
[375867793,1753765856985,-460.0,0.00021917,2]
[375867795,1753765856995,-460.0,0.00021917,2]
[375867797,1753765857005,-460.0,0.00021917,2]
[375867799,1753765857016,-460.0,0.00021917,2]
[375867801,1753765857026,-460.0,0.00021917,2]
[375867804,1753765857036,-460.0,0.00021917,2]
[375867806,1753765857049,-460.0,0.00021917,2]
[375867808,1753765857060,-893.82,0.00021917,2]
[375867810,1753765857070,-460.0,0.00021917,2]
[375867812,1753765857080,-836.14,0.00021917,2]
[375867814,1753765857091,-460.0,0.00021917,2]
[375867816,1753765857102,-1107.56,0.00021917,2]
[375867818,1753765857112,-460.0,0.00021917,2]
[375867820,1753765857124,-460.0,0.00021917,2]
[375867823,1753765857134,-460.0,0.00021917,2]
[375867837,1753765857260,-460.0,0.00021917,2]
[375867839,1753765857286,-488.77,0.00021917,2]
[375867842,1753765857297,-159.057997,0.00021918,2]
[375867844,1753765857307,-3000.0,0.0002192,2]
[375867846,1753765857316,-3000.0,0.0002193,2]
[375867848,1753765857326,-4747.258825,0.0002194,2]
[375867850,1753765857336,-4128.55598188,0.00021955,2]
[375867852,1753765857346,-168.0,0.0002198,2]
[375867853,1753765857355,-473.3,0.00021986,4]
[375867856,1753765857365,-13012.37,0.00022,2]
[375867858,1753765857375,-549.26,0.00022,7]
[375867860,1753765857385,-4188.81,0.00022,7]
[375867862,1753765857394,-1158.22,0.00022,7]
[375867864,1753765857403,-168.0,0.00022023,2]
[375867866,1753765857412,-192.0,0.00022034,2]
[375867868,1753765857422,-150.109,0.00022034,2]
[375867870,1753765857432,-355.94987526,0.00022167,2]
[375867872,1753765857442,-431.89,0.00022191,2]
[375867874,1753765857451,-460.0,0.00022191,2]
[375867876,1753765857461,-460.0,0.00022191,2]
[375867878,1753765857470,-460.0,0.00022191,2]
[375867880,1753765857481,-460.0,0.00022191,2]
[375867882,1753765857490,-460.0,0.00022191,2]
[375867884,1753765857500,-460.0,0.00022191,2]
[375867886,1753765857511,-460.0,0.00022191,2]
[375867888,1753765857520,-460.0,0.00022191,2]
[375867890,1753765857531,-1728.1,0.00022191,2]
[375867892,1753765857542,-460.0,0.00022191,2]
[375867894,1753765857552,-460.0,0.00022191,2]
[375867896,1753765857561,-564.83,0.00022191,2]
[375867898,1753765857571,-1249.97,0.00022191,2]
[375867900,1753765857581,-460.0,0.00022191,2]
[375867902,1753765857592,-522.22,0.00022191,2]
[375867904,1753765857601,-460.0,0.00022191,2]
[375867906,1753765857611,-460.0,0.00022191,2]
[375867908,1753765857620,-460.0,0.00022191,2]
[375867910,1753765857630,-460.0,0.00022191,2]
[375867912,1753765857639,-460.0,0.00022191,2]
[375867914,1753765857649,-472.31,0.00022191,2]
[375867916,1753765857658,-460.0,0.00022191,2]
[375867918,1753765857668,-785.62,0.00022191,2]
[375867920,1753765857677,-1555.88,0.00022191,2]
[375867922,1753765857686,-1092.49,0.00022191,2]
[375867924,1753765857695,-460.0,0.00022191,2]
[375867926,1753765857705,-460.0,0.00022191,2]
[375867928,1753765857714,-535.47,0.00022191,2]
[375867929,1753765857723,-460.0,0.00022191,2]
[375867931,1753765857733,-928.11,0.00022191,2]
[375867933,1753765857742,-460.0,0.00022191,2]
[375867936,1753765857752,-1227.64,0.00022191,2]
[375867938,1753765857762,-2722.94,0.00022191,2]
[375867939,1753765857771,-460.0,0.00022191,2]
[375867941,1753765857782,-460.0,0.00022191,2]
[375867943,1753765857791,-460.0,0.00022191,2]
[375867945,1753765857803,-1069.34,0.00022191,2]
[375867947,1753765857813,-828.51,0.00022191,2]
[375867949,1753765857822,-460.0,0.00022191,2]
[375867951,1753765857832,-460.0,0.00022191,2]
[375867953,1753765857841,-460.0,0.00022191,2]
[375867955,1753765857851,-460.0,0.00022191,2]
[375867957,1753765857860,-460.0,0.00022191,2]
[375867959,1753765857870,-460.0,0.00022191,2]
[375867961,1753765857880,-460.0,0.00022191,2]
[375867963,1753765857890,-460.0,0.00022191,2]
[375867965,1753765857900,-460.0,0.00022191,2]
[375867967,1753765857910,-893.82,0.00022191,2]
[375867969,1753765857919,-460.0,0.00022191,2]
[375867971,1753765857930,-836.14,0.00022191,2]
[375867973,1753765857939,-460.0,0.00022191,2]
[375867975,1753765857949,-1107.56,0.00022191,2]
[375867977,1753765857959,-460.0,0.00022191,2]
[375867979,1753765857970,-460.0,0.00022191,2]
[375867981,1753765857979,-460.0,0.00022191,2]
[375867983,1753765857988,-460.0,0.00022191,2]
[375867984,1753765857998,-488.77,0.00022191,2]
[375867986,1753765858007,-168.0,0.0002225,2]
[375867988,1753765858016,-168.0,0.00022358,2]
[375867990,1753765858029,-150.0,0.00022371,2]
[375867992,1753765858042,-2159.0,0.00022371,2]
[375867994,1753765858056,-473.3,0.00022424,5]
[375867995,1753765858066,-460.0,0.00022465,2]
[375867997,1753765858076,-460.0,0.00022465,2]
[375868000,1753765858087,-460.0,0.00022465,2]
[375868001,1753765858097,-460.0,0.00022465,2]
[375868003,1753765858108,-460.0,0.00022465,2]
[375868005,1753765858118,-460.0,0.00022465,2]
[375868007,1753765858128,-460.0,0.00022465,2]
[375868009,1753765858138,-460.0,0.00022465,2]
[375868011,1753765858148,-1728.1,0.00022465,2]
[375868013,1753765858161,-460.0,0.00022465,2]
[375868015,1753765858171,-460.0,0.00022465,2]
[375868017,1753765858181,-564.83,0.00022465,2]
[375868019,1753765858190,-1249.97,0.00022465,2]
[375868021,1753765858199,-460.0,0.00022465,2]
[375868024,1753765858209,-522.22,0.00022465,2]
[375868026,1753765858219,-460.0,0.00022465,2]
[375868027,1753765858229,-460.0,0.00022465,2]
[375868029,1753765858239,-271.1,0.00022465,2]
[375868031,1753765858249,-460.0,0.00022465,2]
[375868033,1753765858258,-460.0,0.00022465,2]
[375868035,1753765858268,-472.31,0.00022465,2]
[375868037,1753765858278,-460.0,0.00022465,2]
[375868039,1753765858287,-785.62,0.00022465,2]
[375868041,1753765858297,-1555.88,0.00022465,2]
[375868042,1753765858306,-1092.49,0.00022465,2]
[375868043,1753765858316,-460.0,0.00022465,2]
[375868044,1753765858325,-460.0,0.00022465,2]
[375868045,1753765858334,-535.47,0.00022465,2]
[375868046,1753765858344,-460.0,0.00022465,2]
[375868047,1753765858354,-928.11,0.00022465,2]
[375868048,1753765858364,-460.0,0.00022465,2]
[375868049,1753765858374,-1227.64,0.00022465,2]
[375868050,1753765858383,-2722.94,0.00022465,2]
[375868051,1753765858393,-460.0,0.00022465,2]
[375868052,1753765858402,-460.0,0.00022465,2]
[375868053,1753765858412,-1069.34,0.00022465,2]
[375868054,1753765858421,-828.51,0.00022465,2]
[375868055,1753765858430,-460.0,0.00022465,2]
[375868056,1753765858440,-460.0,0.00022465,2]
[375868057,1753765858450,-460.0,0.00022465,2]
[375868058,1753765858459,-460.0,0.00022465,2]
[375868059,1753765858468,-460.0,0.00022465,2]
[375868060,1753765858478,-460.0,0.00022465,2]
[375868061,1753765858488,-460.0,0.00022465,2]
[375868062,1753765858497,-460.0,0.00022465,2]
[375868063,1753765858507,-460.0,0.00022465,2]
[375868064,1753765858517,-893.82,0.00022465,2]
[375868065,1753765858526,-460.0,0.00022465,2]
[375868066,1753765858537,-836.14,0.00022465,2]
[375868067,1753765858546,-1107.56,0.00022465,2]
[375868068,1753765858556,-460.0,0.00022465,2]
[375868069,1753765858566,-460.0,0.00022465,2]
[375868070,1753765858575,-460.0,0.00022465,2]
[375868071,1753765858585,-460.0,0.00022465,2]
[375868072,1753765858594,-488.77,0.00022465,2]
[375868073,1753765858604,-365.80692265,0.00022512,2]
[375868074,1753765858614,-1463.22769061,0.00022512,2]
[375868075,1753765858623,-3292.26230387,0.00022512,2]
[375868076,1753765858633,-5847.05785168,0.00022512,2]
[375868077,1753765858642,-684.28758504,0.00022512,2]
[375868078,1753765858651,-2734.41318982,0.00022512,2]
[375868079,1753765858663,-20000.0,0.00022574,2]
[375868080,1753765858672,-500.0,0.00022594,2]
[375868081,1753765858682,-460.0,0.00022739,2]
[375868082,1753765858692,-460.0,0.00022739,2]
[375868083,1753765858701,-460.0,0.00022739,2]
[375868084,1753765858710,-460.0,0.00022739,2]
[375868085,1753765858719,-460.0,0.00022739,2]
[375868086,1753765858728,-1728.1,0.00022739,2]
[375868087,1753765858737,-460.0,0.00022739,2]
[375868088,1753765858746,-460.0,0.00022739,2]
[375868089,1753765858756,-564.83,0.00022739,2]
[375868090,1753765858766,-1249.97,0.00022739,2]
[375868091,1753765858776,-460.0,0.00022739,2]
[375868092,1753765858785,-522.22,0.00022739,2]
[375868094,1753765858795,-460.0,0.00022739,2]
[375868096,1753765858806,-460.0,0.00022739,2]
[375868098,1753765858817,-460.0,0.00022739,2]
[375868100,1753765858826,-460.0,0.00022739,2]
[375868102,1753765858836,-472.31,0.00022739,2]
[375868104,1753765858845,-460.0,0.00022739,2]
[375868106,1753765858855,-785.62,0.00022739,2]
[375868108,1753765858865,-1555.88,0.00022739,2]
[375868110,1753765858874,-1092.49,0.00022739,2]
[375868112,1753765858884,-460.0,0.00022739,2]
[375868114,1753765858895,-460.0,0.00022739,2]
[375868116,1753765858904,-535.47,0.00022739,2]
[375868118,1753765858915,-460.0,0.00022739,2]
[375868120,1753765858925,-928.11,0.00022739,2]
[375868122,1753765858935,-460.0,0.00022739,2]
[375868123,1753765858945,-1227.64,0.00022739,2]
[375868124,1753765858955,-2722.94,0.00022739,2]
[375868126,1753765858965,-460.0,0.00022739,2]
[375868128,1753765858975,-460.0,0.00022739,2]
[375868130,1753765858985,-1069.34,0.00022739,2]
[375868132,1753765858995,-828.51,0.00022739,2]
[375868134,1753765859005,-317.6,0.00022739,2]
[375868136,1753765859015,-460.0,0.00022739,2]
[375868138,1753765859024,-460.0,0.00022739,2]
[375868140,1753765859034,-450.52,0.00022739,2]
[375868142,1753765859044,-460.0,0.00022739,2]
[375868143,1753765859057,-460.0,0.00022739,2]
[375868145,1753765859066,-460.0,0.00022739,2]
[375868147,1753765859076,-460.0,0.00022739,2]
[375868149,1753765859087,-460.0,0.00022739,2]
[375868150,1753765859097,-893.82,0.00022739,2]
[375868153,1753765859107,-460.0,0.00022739,2]
[375868154,1753765859116,-836.14,0.00022739,2]
[375868156,1753765859125,-1107.56,0.00022739,2]
[375868158,1753765859135,-460.0,0.00022739,2]
[375868160,1753765859145,-460.0,0.00022739,2]
[375868162,1753765859157,-460.0,0.00022739,2]
[375868164,1753765859167,-460.0,0.00022739,2]
[375868166,1753765859177,-488.77,0.00022739,2]
[375868168,1753765859187,-473.3,0.00022861,5]
[375868169,1753765859198,-151.0,0.00023,7]
[375868170,1753765859208,-151.0,0.00023,7]
[375868172,1753765859217,-247.773402,0.00023,7]
[375868174,1753765859227,-1253.1,0.00023,2]
[375868176,1753765859237,-160.0,0.00023,2]
[375868178,1753765859247,-161.0,0.00023,7]
[375868180,1753765859256,-7.40619731,0.00023013,2]
[375869224,1753766005499,7827.4439395,0.00018145,2]
[375869229,1753766298392,159.057997,0.00013699,2]
[375869232,1753766311157,-242.94246465,0.00018518,2]
[375869233,1753766415904,151.0356581,0.000191,6]
[375869234,1753766539076,203.28126122,0.0001847,2]
[375869235,1753766675793,150.0,0.00022422,30]
[375869238,1753766825150,-610.76758519,0.00018518,2]
[375869239,1753766845177,-411.07085096,0.00018518,2]
[375869240,1753766845200,-6451.84408666,0.00018669,2]
[375869241,1753766845224,-197.87053434,0.00018769,2]
[375869242,1753766845246,-177.97493763,0.0001887,2]
[375869243,1753766845268,-300.0,0.00018966,2]
[375869244,1753766845290,-1200.0,0.00018967,2]
[375869245,1753766845312,-3300.33037381,0.00018968,2]
[375869246,1753766848770,202.59879135,0.00018418,2]
[375869272,1753767031783,-300.0,0.00018966,2]
[375869273,1753767031794,-300.0,0.00018966,2]
[375869274,1753767031804,-300.0,0.00018966,2]
[375869275,1753767031814,-300.0,0.00018966,2]
[375869276,1753767031825,-300.0,0.00018966,2]
[375869277,1753767031835,-864.876,0.00018966,2]
[375869278,1753767031847,-335.124,0.00018966,2]
[375869280,1753767031856,-251.8634673,0.00018967,2]
[375869283,1753767031874,-248.1365327,0.00018967,2]
[375869285,1753767031884,-516.94545798,0.00018967,2]
[375869286,1753767031893,-500.0,0.00018967,2]
[375869288,1753767031903,-500.0,0.00018967,2]
[375869290,1753767031912,-500.88851294,0.00018967,2]
[375869291,1753767031921,-500.0,0.00018967,2]
[375869293,1753767031931,-500.0,0.00018967,2]
[375869294,1753767031941,-500.0,0.00018967,2]
[375869296,1753767031950,-500.0,0.00018967,2]
[375869298,1753767031960,-500.0,0.00018967,2]
[375869300,1753767031969,-500.0,0.00018967,2]
[375869302,1753767031979,-500.0,0.00018967,2]
[375869304,1753767031988,-600.50701452,0.00018967,2]
[375869306,1753767031998,-500.0,0.00018967,2]
[375869308,1753767032007,-500.0,0.00018967,2]
[375869310,1753767032017,-500.0,0.00018967,2]
[375869312,1753767032027,-500.0,0.00018967,2]
[375869314,1753767032037,-500.0,0.00018967,2]
[375869316,1753767032046,-500.0,0.00018967,2]
[375869318,1753767032056,-500.0,0.00018967,2]
[375869320,1753767032066,-191.22881466,0.00018967,2]
[375869322,1753767032075,-500.0,0.00018967,2]
[375869324,1753767032086,-500.0,0.00018967,2]
[375869326,1753767032096,-500.0,0.00018967,2]
[375869328,1753767032105,-500.0,0.00018967,2]
[375869330,1753767032115,-500.0,0.00018967,2]
[375869332,1753767032125,-500.0,0.00018967,2]
[375869350,1753767032308,-500.0,0.00018967,2]
[375869353,1753767032327,-500.0,0.00018967,2]
[375869355,1753767032338,-500.0,0.00018967,2]
[375869357,1753767032348,-500.0,0.00018967,2]
[375869359,1753767032358,-459.48934514,0.00018967,2]
[375869361,1753767032367,-500.0,0.00018967,2]
[375869363,1753767032377,-572.15225294,0.00018967,2]
[375869365,1753767032387,-500.0,0.00018967,2]
[375869367,1753767032396,-350.88604413,0.00018967,2]
[375869369,1753767032406,-435.54844549,0.00018967,2]
[375869371,1753767032415,-500.0,0.00018967,2]
[375869373,1753767032425,-500.0,0.00018967,2]
[375869375,1753767032435,-500.0,0.00018967,2]
[375869376,1753767032445,-500.0,0.00018967,2]
[375869378,1753767032455,-500.0,0.00018967,2]
[375869380,1753767032464,-500.0,0.00018967,2]
[375869382,1753767032473,-500.0,0.00018967,2]
[375869384,1753767032484,-500.0,0.00018967,2]
[375869386,1753767032494,-500.0,0.00018967,2]
[375869388,1753767032508,-607.86757452,0.00018967,2]
[375869390,1753767032517,-500.0,0.00018967,2]
[375869392,1753767032527,-500.0,0.00018967,2]
[375869394,1753767032538,-500.0,0.00018967,2]
[375869396,1753767032548,-500.0,0.00018967,2]
[375869398,1753767032557,-500.0,0.00018967,2]
[375869400,1753767032567,-500.0,0.00018967,2]
[375869402,1753767032578,-398.50260751,0.00018967,2]
[375869404,1753767032587,-500.0,0.00018967,2]
[375869406,1753767032597,-160.0,0.00018975,2]
[375869408,1753767032607,-8571.22055699,0.00018978,2]
[375869411,1753767032621,-922.15248129,0.00018978,2]
[375869413,1753767032632,-410.45625808,0.00018978,2]
[375869415,1753767032644,-13028.35160655,0.00018978,2]
[375869417,1753767032656,-21747.37015271,0.00018978,2]
[375869419,1753767032667,-370.5,0.00019168,3]
[375869421,1753767032676,-500.0,0.00019173,2]
[375869423,1753767032687,-500.0,0.00019173,2]
[375869425,1753767032696,-500.0,0.00019173,2]
[375869427,1753767032708,-500.0,0.00019173,2]
[375869429,1753767032719,-500.0,0.00019173,2]
[375869431,1753767032728,-503.68956767,0.00019173,2]
[375869433,1753767032738,-501.49403012,0.00019173,2]
[375869435,1753767032747,-500.0,0.00019173,2]
[375869437,1753767032757,-332.80708464,0.00019173,2]
[375869439,1753767032766,-502.53665721,0.00019173,2]
[375869441,1753767032775,-500.0,0.00019173,2]
[375869443,1753767032785,-500.0,0.00019173,2]
[375869445,1753767032794,-427.32035153,0.00019173,2]
[375869447,1753767032803,-500.0,0.00019173,2]
[375869449,1753767032813,-500.76187271,0.00019173,2]
[375869451,1753767032822,-368.51126841,0.00019173,2]
[375869453,1753767032832,-501.99621775,0.00019173,2]
[375869455,1753767032841,-500.0,0.00019173,2]
[375869457,1753767032851,-500.0,0.00019173,2]
[375869459,1753767032860,-213.69506684,0.00019173,2]
[375869461,1753767032871,-501.49568985,0.00019173,2]
[375869463,1753767032880,-500.0,0.00019173,2]
[375869464,1753767032890,-501.89685423,0.00019173,2]
[375869466,1753767032900,-531.81224926,0.00019173,2]
[375869469,1753767032909,-512.58752256,0.00019173,2]
[375869470,1753767032919,-501.31946841,0.00019173,2]
[375869472,1753767032928,-500.0,0.00019173,2]
[375869474,1753767032938,-213.95373261,0.00019173,2]
[375869476,1753767032947,-460.0,0.00019178,2]
[375869478,1753767032957,-460.0,0.00019178,2]
[375869480,1753767032967,-460.0,0.00019178,2]
[375869482,1753767032976,-460.0,0.00019178,2]
[375869484,1753767032985,-460.0,0.00019178,2]
[375869486,1753767032995,-460.0,0.00019178,2]
[375869488,1753767033005,-460.0,0.00019178,2]
[375869490,1753767033014,-460.0,0.00019178,2]
[375869492,1753767033024,-427.00298709,0.00019178,2]
[375869494,1753767033034,-460.0,0.00019178,2]
[375869496,1753767033044,-460.0,0.00019178,2]
[375869498,1753767033054,-460.0,0.00019178,2]
[375869500,1753767033064,-500.0,0.00019178,2]
[375869502,1753767033073,-460.0,0.00019178,2]
[375869504,1753767033084,-319.3390574,0.00019178,2]
[375869506,1753767033097,-140.6609426,0.00019178,2]
[375869508,1753767033107,-316.69,0.00019178,2]
[375869510,1753767033116,-442.8062127,0.00019178,2]
[375869991,1753767038100,-17.1937873,0.00019178,2]
[375869993,1753767038110,-460.0,0.00019178,2]
[375869995,1753767038120,-460.0,0.00019178,2]
[375869997,1753767038138,-460.0,0.00019178,2]
[375869999,1753767038148,-460.0,0.00019178,2]
[375870001,1753767038157,-460.0,0.00019178,2]
[375870003,1753767038167,-460.0,0.00019178,2]
[375870005,1753767038177,-460.0,0.00019178,2]
[375870007,1753767038186,-460.0,0.00019178,2]
[375870009,1753767038195,-460.0,0.00019178,2]
[375870011,1753767038205,-460.0,0.00019178,2]
[375870013,1753767038214,-460.0,0.00019178,2]
[375870015,1753767038224,-460.0,0.00019178,2]
[375870017,1753767038234,-460.0,0.00019178,2]
[375870019,1753767038243,-460.0,0.00019178,2]
[375870021,1753767038253,-460.0,0.00019178,2]
[375870023,1753767038264,-460.0,0.00019178,2]
[375870025,1753767038274,-460.0,0.00019178,2]
[375870027,1753767038283,-460.0,0.00019178,2]
[375870029,1753767038293,-460.0,0.00019178,2]
[375870031,1753767038302,-460.0,0.00019178,2]
[375870033,1753767038312,-460.19340553,0.00019178,2]
[375870035,1753767038321,-460.0,0.00019178,2]
[375870037,1753767038330,-460.0,0.00019178,2]
[375870039,1753767038339,-460.0,0.00019178,2]
[375870041,1753767038348,-409.23137832,0.00019178,2]
[375870043,1753767038358,-460.0,0.00019178,2]
[375870045,1753767038367,-460.0,0.00019178,2]
[375870047,1753767038377,-460.0,0.00019178,2]
[375870049,1753767038386,-460.0,0.00019178,2]
[375870051,1753767038395,-460.0,0.00019178,2]
[375870053,1753767038404,-460.0,0.00019178,2]
[375870055,1753767038413,-460.0,0.00019178,2]
[375870058,1753767038430,-460.0,0.00019178,2]
[375870060,1753767038445,-460.0,0.00019178,2]
[375870062,1753767038454,-462.04681142,0.00019178,2]
[375870064,1753767038465,-460.0,0.00019178,2]
[375870066,1753767038474,-460.0,0.00019178,2]
[375870068,1753767038483,-460.0,0.00019178,2]
[375870070,1753767038494,-460.0,0.00019178,2]
[375870072,1753767038506,-460.0,0.00019178,2]
[375870074,1753767038515,-460.0,0.00019178,2]
[375870076,1753767038526,-175.07441374,0.00019178,2]
[375870078,1753767038538,-460.0,0.00019178,2]
[375870080,1753767038548,-460.0,0.00019178,2]
[375870082,1753767038558,-460.0,0.00019178,2]
[375870084,1753767038568,-460.0,0.00019178,2]
[375870086,1753767038578,-460.0,0.00019178,2]
[375870088,1753767038589,-460.0,0.00019178,2]
[375870090,1753767038598,-460.0,0.00019178,2]
[375870092,1753767038608,-460.0,0.00019178,2]
[375870094,1753767038618,-460.0,0.00019178,2]
[375870096,1753767038628,-768.98,0.00019178,2]
[375870098,1753767038638,-500.0,0.00019178,2]
[375870100,1753767038647,-500.0,0.00019178,2]
[375870102,1753767038658,-500.0,0.00019178,2]
[375870104,1753767038668,-500.0,0.00019178,2]
[375870106,1753767038677,-500.0,0.00019178,2]
[375870108,1753767038687,-500.0,0.00019178,2]
[375870110,1753767038697,-511.52,0.00019178,2]
[375870112,1753767038707,-460.0,0.00019178,2]
[375870114,1753767038716,-637.47,0.00019178,2]
[375870116,1753767038726,-460.0,0.00019178,2]
[375870118,1753767038735,-1134.56,0.00019178,2]
[375870120,1753767038745,-775.71,0.00019178,2]
[375870122,1753767038756,-460.0,0.00019178,2]
[375870124,1753767038765,-460.0,0.00019178,2]
[375870126,1753767038775,-460.0,0.00019178,2]
[375870128,1753767038785,-460.0,0.00019178,2]
[375870130,1753767038795,-460.0,0.00019178,2]
[375870131,1753767038804,-460.0,0.00019178,2]
[375870133,1753767038814,-460.0,0.00019178,2]
[375870136,1753767038824,-460.0,0.00019178,2]
[375870137,1753767038833,-239.66,0.00019178,2]
[375870139,1753767038843,-460.0,0.00019178,2]
[375870141,1753767038853,-463.06,0.00019178,2]
[375870143,1753767038863,-460.0,0.00019178,2]
[375870145,1753767038873,-460.0,0.00019178,2]
[375870147,1753767038883,-520.82,0.00019178,2]
[375870149,1753767038893,-460.0,0.00019178,2]
[375870151,1753767038902,-460.0,0.00019178,2]
[375870153,1753767038911,-460.0,0.00019178,2]
[375870155,1753767038923,-460.0,0.00019178,2]
[375870157,1753767038932,-460.0,0.00019178,2]
[375870159,1753767038943,-460.0,0.00019178,2]
[375870161,1753767038952,-460.0,0.00019178,2]
[375870163,1753767038963,-460.79019089,0.00019178,2]
[375870164,1753767038972,-460.0,0.00019178,2]
[375870165,1753767038981,-301.90045245,0.00019178,2]
[375870167,1753767038991,-460.0,0.00019178,2]
[375870169,1753767039001,-542.2,0.00019178,2]